bitfinex/quotes_BTCUSD_20260310
["timestamp","ask_amount","ask_price","bid_price","bid_amount"]
[1773170102149,0.03,70104.0,70086.0,0.01988083]
[1773170102695,0.03,70102.0,70085.0,0.07134194]
[1773170102901,0.03,70096.0,70086.0,0.00148]
[1773170103122,0.03,70092.0,70086.0,0.00148]
[1773170103300,0.03,70092.0,70084.0,0.07134236]
[1773170103524,0.03,70092.0,70085.0,0.00148]
[1773170103901,0.03,70092.0,70086.0,0.07134092]
[1773170104147,0.03,70093.0,70086.0,0.07134092]
[1773170104831,0.10133381,70093.0,70086.0,0.07134092]
[1773170105084,0.03,70089.0,70086.0,0.07134092]
[1773170106036,0.03,70092.0,70086.0,0.07134092]
[1773170106206,0.01822045,70102.0,70086.0,0.07134092]
[1773170106560,0.07130984,70117.0,70087.0,0.01988083]
[1773170106561,0.07131446,70112.0,70087.0,0.01988083]
[1773170106916,0.00022001,70100.0,70087.0,0.01988083]
[1773170107297,0.03,70111.0,70087.0,0.01988083]
[1773170107769,0.00022001,70107.0,70087.0,0.01560078]
[1773170108173,0.00022001,70107.0,70089.0,0.01988083]
[1773170108524,0.03,70106.0,70089.0,0.01988083]
[1773170109175,0.00022001,70107.0,70089.0,0.01988083]
[1773170109500,0.00562,70124.0,70091.0,1.529796]
[1773170109501,0.10130328,70123.0,70091.0,1.529796]
[1773170109637,0.03,70123.0,70094.0,0.01988083]
[1773170109847,0.03,70123.0,70096.0,0.01988083]
[1773170110248,0.03,70121.0,70098.0,0.01988083]
[1773170112197,0.03,70119.0,70100.0,0.03237569]
[1773170112402,0.03,70119.0,70102.0,0.03237569]
[1773170113044,0.00562,70124.0,70102.0,0.03237569]
[1773170113250,0.00562,70124.0,70101.0,0.00148]
[1773170113251,0.0003319,70132.0,70111.0,0.08771988]
[1773170113469,0.01082987,70140.0,70112.0,0.03385569]
[1773170113675,0.01082987,70140.0,70121.0,0.03237569]
[1773170113676,0.07128699,70140.0,70121.0,0.03237569]
[1773170113884,0.07128699,70140.0,70111.0,0.22319988]
[1773170114089,0.04222447,70139.0,70112.0,0.03385569]
[1773170114296,0.04222447,70139.0,70114.0,0.03237569]
[1773170114297,0.00022001,70121.0,70114.0,0.03237569]
[1773170114497,0.00022001,70129.0,70114.0,0.03237569]
[1773170115387,0.00022001,70129.0,70115.0,0.00148]
[1773170115606,0.00022001,70129.0,70116.0,0.00148]
[1773170116246,0.03,70127.0,70116.0,0.00148]
[1773170116456,0.03,70127.0,70108.0,0.03237569]
[1773170116457,0.03,70127.0,70117.0,0.00148]
[1773170116660,0.03,70127.0,70118.0,0.00148]
[1773170116862,0.03,70127.0,70110.0,0.07131581]
[1773170117073,0.03,70127.0,70111.0,0.00148]
[1773170117279,0.03,70127.0,70105.0,0.07132153]
[1773170117486,0.03,70127.0,70108.0,0.00148]
[1773170117655,0.03,70127.0,70105.0,0.07132153]
[1773170117862,0.03,70119.0,70100.0,0.0715566]
[1773170118039,0.03,70119.0,70102.0,0.00148]
[1773170118243,0.03,70119.0,70100.0,0.00023]
[1773170118244,0.03,70117.0,70100.0,0.00023]
[1773170118470,0.03,70117.0,70097.0,0.07132972]
[1773170118653,0.03,70117.0,70098.0,0.00148]
[1773170119070,0.03,70117.0,70099.0,0.03237569]
[1773170119422,0.03037487,70117.0,70099.0,0.03237569]
[1773170120262,0.03037487,70117.0,70100.0,0.00048]
[1773170120858,0.07131039,70116.0,70101.0,0.07132565]
[1773170121015,0.03,70115.0,70101.0,0.07132565]
[1773170121639,0.06831039,70116.0,70101.0,0.07132565]
[1773170122848,0.06831039,70116.0,70102.0,0.04370058]
[1773170123024,0.06831039,70116.0,70103.0,0.07132362]
[1773170123225,0.06831039,70116.0,70104.0,0.04518058]
[1773170123226,0.03,70116.0,70104.0,0.04518058]
[1773170123632,0.03,70116.0,70104.0,0.00148]
[1773170124468,0.07190444,70117.0,70105.0,0.04370058]
[1773170124469,0.03,70115.0,70105.0,0.04370058]
[1773170124882,0.03,70115.0,70106.0,0.07132057]
[1773170125077,0.03,70115.0,70106.0,0.11493759]
[1773170125278,0.10131162,70115.0,70106.0,0.07132057]
[1773170125534,0.10131162,70115.0,70096.0,0.07499993]
[1773170125726,0.10131162,70115.0,70097.0,0.00148]
[1773170126370,0.10131162,70115.0,70098.0,0.00148]
[1773170127301,0.10131162,70115.0,70099.0,0.07132769]
[1773170127868,0.10131162,70115.0,70100.0,0.04351544]
[1773170128069,0.00045001,70125.0,70101.0,0.04351544]
[1773170128304,0.0712942,70132.0,70101.0,0.04351544]
[1773170128512,0.0712942,70132.0,70101.0,0.04389031]
[1773170129114,0.03,70129.0,70102.0,0.07132464]
[1773170129463,0.03,70129.0,70103.0,0.04570458]
[1773170129621,0.03,70129.0,70105.0,0.04570458]
[1773170130213,0.03,70131.0,70105.0,0.04570458]
[1773170131271,0.03,70130.0,70107.0,0.04570458]
[1773170131836,0.07129088,70136.0,70112.0,0.04570458]
[1773170132063,0.07129088,70136.0,70114.0,0.04570458]
[1773170132261,0.03,70135.0,70114.0,0.04570458]
[1773170133279,0.00022001,70129.0,70115.0,0.07131141]
[1773170133526,0.00022001,70129.0,70116.0,0.04570458]
[1773170133728,0.03,70134.0,70116.0,0.04570458]
[1773170134133,0.1012922,70134.0,70116.0,0.04570458]
[1773170134558,0.1012922,70134.0,70118.0,0.04570458]
[1773170134940,0.03,70133.0,70118.0,0.04570458]
[1773170135625,0.03,70133.0,70120.0,0.04570458]
[1773170135825,0.03,70132.0,70120.0,0.04570458]
[1773170136552,0.03,70132.0,70121.0,0.00148]
[1773170136753,0.03,70132.0,70122.0,0.04570458]
[1773170136954,0.03,70131.0,70122.0,0.04570458]
[1773170137469,0.03,70131.0,70124.0,0.04570458]
[1773170137903,0.03,70130.0,70124.0,0.04570458]
[1773170138421,0.03,70130.0,70125.0,0.00148]
[1773170138828,0.03,70129.0,70125.0,0.04718458]
[1773170139238,0.03,70129.0,70126.0,0.00148]
[1773170139492,0.03,70129.0,70127.0,0.11700379]
[1773170139733,0.00022001,70137.0,70127.0,0.07129921]
[1773170139857,0.03022001,70137.0,70127.0,0.07129921]
[1773170140063,0.03022001,70137.0,70128.0,0.04570458]
[1773170140896,0.00022001,70137.0,70128.0,0.04570458]
[1773170141303,0.07150977,70137.0,70128.0,0.04570458]
[1773170141502,0.07150977,70137.0,70126.0,0.07277921]
[1773170141503,0.03022001,70131.0,70129.0,0.00148]
[1773170142632,0.03,70130.0,70129.0,0.00148]
[1773170143594,0.00122001,70131.0,70129.0,0.00148]
[1773170143795,0.00022001,70131.0,70129.0,0.07277706]
[1773170144220,0.00122001,70131.0,70129.0,0.07277706]
[1773170144419,0.00022001,70131.0,70129.0,0.07277706]
[1773170145060,0.07183792,70150.0,70130.0,0.04570458]
[1773170145263,0.0005619,70150.0,70131.0,0.04570458]
[1773170145757,0.0005619,70150.0,70133.0,0.04570458]
[1773170146425,0.0005619,70150.0,70132.0,0.07129413]
[1773170146426,0.03,70148.0,70131.0,0.07129413]
[1773170146600,0.03,70148.0,70134.0,0.00148]
[1773170146949,0.03,70148.0,70118.0,0.04570458]
[1773170147232,0.0301124,70148.0,70120.0,0.04570458]
[1773170147602,0.03,70146.0,70121.0,0.07130531]
[1773170147922,0.03,70146.0,70122.0,0.04570458]
[1773170148987,0.03,70146.0,70121.0,0.07130531]
[1773170149357,0.07127888,70147.0,70122.0,0.00148]
[1773170149358,0.03,70139.0,70122.0,0.00148]
[1773170149562,0.00148,70138.0,70120.0,0.00148]
[1773170149795,0.03,70136.0,70116.0,0.0002]
[1773170150028,0.03,70129.0,70116.0,0.0002]
[1773170150153,0.00148,70128.0,70116.0,0.0002]
[1773170151590,0.03148,70128.0,70117.0,0.07130938]
[1773170151791,0.1027783,70128.0,70118.0,0.04570458]
[1773170151995,0.1027783,70128.0,70117.0,0.07130938]
[1773170152302,0.10260127,70128.0,70117.0,0.07130938]
[1773170153213,0.1012983,70128.0,70117.0,0.07130938]
[1773170154185,0.1012983,70128.0,70108.0,0.07151806]
[1773170154409,0.1012983,70128.0,70090.0,0.0002]
[1773170154410,0.03,70119.0,70090.0,0.0002]
[1773170154620,0.16270474,70120.0,70091.0,0.11703841]
[1773170154621,0.03,70109.0,70091.0,0.11703841]
[1773170154923,0.03,70109.0,70098.0,0.07300816]
[1773170155119,0.03,70109.0,70098.0,0.07300849]
[1773170155270,0.03,70109.0,70098.0,0.00168]
[1773170155684,0.03,70108.0,70086.0,0.11737657]
[1773170155880,0.03,70108.0,70091.0,0.00148]
[1773170156074,0.03,70108.0,70092.0,0.00148]
[1773170156075,0.03,70106.0,70092.0,0.00148]
[1773170156510,0.00148,70105.0,70092.0,0.0713348]
[1773170156820,0.00148,70105.0,70091.0,0.00159251]
[1773170157015,0.00148,70105.0,70091.0,0.07292785]
[1773170157221,0.00148,70105.0,70091.0,0.07144812]
[1773170157438,0.07131955,70109.0,70091.0,0.07144812]
[1773170157439,0.07692328,70124.0,70092.0,0.04718458]
[1773170158134,0.00562,70124.0,70094.0,0.04570458]
[1773170158858,0.0769223,70124.0,70094.0,0.04570458]
[1773170159218,0.00562,70124.0,70094.0,0.04570458]
[1773170159841,0.00562,70124.0,70094.0,0.04670458]
[1773170160280,0.00562,70124.0,70096.0,0.04570458]
[1773170160487,0.00562,70124.0,70101.0,0.04570458]
[1773170160689,0.07128999,70137.0,70104.0,0.666446]
[1773170160690,0.00148,70134.0,70104.0,0.666446]
[1773170160861,0.07129122,70135.0,70111.0,0.04570458]
[1773170161063,0.07129122,70135.0,70105.0,0.08348458]
[1773170161064,0.07129122,70135.0,70112.0,0.00148]
[1773170161265,0.07129122,70135.0,70113.0,0.04570458]
[1773170161691,0.16270474,70130.0,70101.0,0.04570458]
[1773170161896,0.00148,70129.0,70103.0,0.04570458]
[1773170162347,0.00148,70129.0,70105.0,0.04570458]
[1773170162655,0.00037487,70129.0,70105.0,0.04570458]
[1773170164291,0.00037487,70129.0,70106.0,0.07132057]
[1773170164485,0.00037487,70129.0,70107.0,0.04570458]
[1773170165273,0.00037487,70129.0,70108.0,0.00148]
[1773170165274,0.07129819,70128.0,70108.0,0.00148]
[1773170165470,0.07129819,70128.0,70109.0,0.04570458]
[1773170165821,0.00037487,70129.0,70109.0,0.04570458]
[1773170166031,0.07276907,70137.0,70108.0,0.00148]
[1773170166032,0.07129029,70136.0,70108.0,0.00148]
[1773170166231,0.00011235,70136.0,70111.0,0.04570458]
[1773170166437,0.00148,70145.0,70114.0,0.747971]
[1773170166658,0.00148,70145.0,70121.0,0.04570458]
[1773170167000,0.00022001,70146.0,70130.0,0.16270474]
[1773170167142,1e-08,70146.0,70131.0,0.04718458]
[1773170167558,1e-08,70150.0,70133.0,0.04570458]
[1773170168205,0.00022001,70154.0,70133.0,0.04570458]
[1773170168206,1e-08,70152.0,70133.0,0.04570458]
[1773170168409,1e-08,70152.0,70135.0,0.04570458]
[1773170168410,0.00011441,70152.0,70135.0,0.04570458]
[1773170168587,0.00011441,70152.0,70137.0,0.04570458]
[1773170170310,0.00011441,70152.0,70132.0,0.07129209]
[1773170170509,0.03,70151.0,70127.0,0.07129875]
[1773170170712,0.03,70151.0,70128.0,0.04718458]
[1773170171096,0.0301144,70151.0,70128.0,0.04718458]
[1773170171296,0.0301144,70151.0,70127.0,0.00011235]
[1773170171297,0.03,70149.0,70127.0,0.00011235]
[1773170171483,0.03,70149.0,70127.0,0.00159235]
[1773170172135,0.0301144,70149.0,70128.0,0.00148]
[1773170172387,0.0001144,70149.0,70128.0,0.00148]
[1773170172580,0.0301144,70149.0,70130.0,0.04570458]
[1773170172765,0.0301144,70149.0,70132.0,0.04570458]
[1773170173509,0.0301144,70149.0,70133.0,0.00148]
[1773170173510,0.03,70148.0,70133.0,0.00148]
[1773170174133,0.0301144,70148.0,70133.0,0.00148]
[1773170174582,0.0301144,70148.0,70134.0,0.07129209]
[1773170175868,0.03,70147.0,70135.0,0.04570458]
[1773170176266,0.0301144,70147.0,70135.0,0.04570458]
[1773170176474,0.07127409,70152.0,70135.0,0.04570458]
[1773170176675,1e-08,70152.0,70137.0,0.04570458]
[1773170176834,0.03000001,70152.0,70137.0,0.04570458]
[1773170177404,0.03000001,70152.0,70138.0,0.00148]
[1773170177688,0.03000001,70152.0,70136.0,0.07129006]
[1773170177689,0.03000001,70152.0,70139.0,0.00148]
[1773170177863,0.00022001,70148.0,70139.0,0.00148]
[1773170178039,0.00022001,70148.0,70139.0,0.04718458]
[1773170178240,0.00022001,70148.0,70136.0,0.07129006]
[1773170178661,0.03,70146.0,70137.0,0.00148]
[1773170179907,0.03,70146.0,70136.0,0.07277006]
[1773170180110,0.03,70146.0,70136.0,0.07276962]
[1773170180432,0.03,70146.0,70135.0,0.07129064]
[1773170180433,0.03,70146.0,70135.0,0.07129108]
[1773170180717,0.03,70146.0,70136.0,0.00148]
[1773170181153,0.03,70146.0,70135.0,0.07129108]
[1773170181154,0.03,70144.0,70135.0,0.00148]
[1773170181788,0.03,70144.0,70135.0,0.04718458]
[1773170181988,0.03,70144.0,70135.0,0.00148]
[1773170182112,0.03,70143.0,70135.0,0.00148]
[1773170182318,0.03,70143.0,70133.0,0.00148]
[1773170182556,0.03,70143.0,70131.0,0.07129511]
[1773170182806,0.03,70143.0,70132.0,0.00148]
[1773170183129,0.03,70143.0,70133.0,0.07129311]
[1773170183303,0.03,70143.0,70132.0,0.07277329]
[1773170183603,0.03,70143.0,70132.0,0.07277382]
[1773170184028,0.03,70143.0,70131.0,0.07129427]
[1773170184183,0.03,70143.0,70131.0,0.00148]
[1773170184384,0.03,70143.0,70127.0,0.07140953]
[1773170184385,0.03,70140.0,70123.0,0.00148]
[1773170184705,0.00148,70139.0,70123.0,0.0713031]
[1773170184933,0.00148,70139.0,70125.0,0.07153097]
[1773170185139,0.03,70137.0,70119.0,0.07130692]
[1773170185334,0.03,70137.0,70119.0,0.07278734]
[1773170185885,0.03,70137.0,70120.0,0.00148]
[1773170186287,0.03,70137.0,70119.0,0.07130734]
[1773170186493,0.03,70137.0,70120.0,0.00148]
[1773170186905,0.03,70137.0,70118.0,0.00148]
[1773170187097,0.03,70137.0,70109.0,0.15332108]
[1773170187098,0.03,70135.0,70117.0,0.00148]
[1773170187381,0.03,70135.0,70118.0,0.04570458]
[1773170188145,0.0712891,70137.0,70118.0,0.04570458]
[1773170188146,0.03,70134.0,70118.0,0.04570458]
[1773170188329,0.03,70134.0,70119.0,0.00148]
[1773170188531,0.03,70134.0,70115.0,0.07131127]
[1773170188532,0.03,70134.0,70120.0,0.00148]
[1773170188782,0.03,70134.0,70121.0,0.04570458]
[1773170188980,0.00148,70138.0,70121.0,0.04570458]
[1773170189178,0.0714986,70148.0,70123.0,0.04570458]
[1773170189179,0.03,70147.0,70123.0,0.04570458]
[1773170189360,0.03,70147.0,70123.0,0.04581693]
[1773170189960,0.03,70147.0,70124.0,0.04570458]
[1773170190221,0.03,70146.0,70124.0,0.04570458]
[1773170190382,1e-08,70152.0,70131.0,0.04570458]
[1773170190589,1e-08,70152.0,70133.0,0.04570458]
[1773170191369,0.00037,70170.0,70141.0,0.04570458]
[1773170191570,0.00037,70170.0,70151.0,0.04570458]
[1773170191744,0.00023,70175.0,70140.0,0.3252585]
[1773170191745,0.00023,70175.0,70153.0,0.04570458]
[1773170191920,0.08202782,70174.0,70155.0,0.04570458]
[1773170192119,0.08202782,70174.0,70157.0,0.04570458]
[1773170192370,0.03,70173.0,70145.0,0.21294175]
[1773170192587,0.03,70173.0,70147.0,0.04570458]
[1773170192735,0.0301124,70173.0,70149.0,0.04570458]
[1773170193162,0.00148,70172.0,70150.0,0.00148]
[1773170193380,0.03,70170.0,70151.0,0.07127482]
[1773170193529,0.03,70170.0,70151.0,0.1169794]
[1773170194842,0.03,70170.0,70144.0,0.07128157]
[1773170195070,0.19262925,70170.0,70143.0,0.07128295]
[1773170195277,0.19262925,70170.0,70144.0,0.00148]
[1773170195278,0.03,70168.0,70144.0,0.00148]
[1773170195480,0.03,70168.0,70145.0,0.00148]
[1773170195655,0.03,70168.0,70144.0,0.00148]
[1773170197264,0.0001124,70173.0,70147.0,0.04570458]
[1773170197464,0.07136488,70173.0,70147.0,0.04570458]
[1773170197727,0.07284488,70173.0,70147.0,0.04570458]
[1773170198076,0.07136488,70173.0,70148.0,0.04570458]
[1773170198279,0.001,70168.0,70148.0,0.04570458]
[1773170198494,0.03,70172.0,70148.0,0.04570458]
[1773170199445,0.03,70172.0,70150.0,0.16262925]
[1773170199650,0.03,70171.0,70151.0,0.04718458]
[1773170199850,0.0001124,70173.0,70151.0,0.04718458]
[1773170200311,0.07136562,70173.0,70149.0,0.07127685]
[1773170200513,0.07136562,70173.0,70150.0,0.00148]
[1773170200714,0.03,70172.0,70150.0,0.04570458]
[1773170201009,0.03,70172.0,70151.0,0.00148]
[1773170201150,0.03,70172.0,70151.0,0.00248]
[1773170201353,0.03,70172.0,70139.0,0.07128679]
[1773170201354,0.19262925,70170.0,70139.0,0.07128679]
[1773170201559,0.19262925,70170.0,70140.0,0.07276599]
[1773170201772,0.03,70159.0,70137.0,0.00168]
[1773170201975,0.00148,70158.0,70138.0,0.04570458]
[1773170202186,0.00148,70158.0,70137.0,0.0729685]
[1773170202187,0.00148,70158.0,70137.0,0.0714885]
[1773170203039,0.00148,70158.0,70137.0,0.0002]
[1773170203535,0.03,70156.0,70137.0,0.07148872]
[1773170203931,0.03,70156.0,70137.0,0.0002]
[1773170204164,0.03,70156.0,70137.0,0.07148881]
[1773170204522,0.03,70156.0,70137.0,0.0002]
[1773170204723,0.03,70149.0,70129.0,0.07149706]
[1773170204931,0.03,70149.0,70130.0,0.04718458]
[1773170205170,0.11289935,70178.0,70131.0,0.04570458]
[1773170205437,0.07273705,70169.0,70136.0,0.04570458]
[1773170205679,0.07273705,70169.0,70138.0,0.04570458]
[1773170205893,0.03,70168.0,70138.0,0.04570458]
[1773170206095,0.03,70168.0,70141.0,0.04570458]
[1773170206523,0.0001124,70169.0,70141.0,0.04570458]
[1773170206739,0.00171,70175.0,70141.0,0.04570458]
[1773170206962,0.00171,70175.0,70141.0,0.04581698]
[1773170206963,0.03,70173.0,70141.0,0.04581698]
[1773170207173,0.03,70173.0,70151.0,0.04570458]
[1773170207395,0.0003034,70181.0,70151.0,0.04570458]
[1773170207396,0.0003034,70181.0,70154.0,0.07127177]
[1773170207616,0.0003034,70181.0,70155.0,0.04570458]
[1773170207819,0.0303034,70181.0,70155.0,0.04570458]
[1773170208854,0.03562,70180.0,70155.0,0.04570458]
[1773170209117,0.07271979,70186.0,70155.0,0.04570458]
[1773170209118,0.00148,70186.0,70155.0,0.04570458]
[1773170209329,0.11829934,70208.0,70162.0,0.04570458]
[1773170209330,0.07153131,70198.0,70162.0,0.04570458]
[1773170209540,0.07153131,70198.0,70165.0,0.04570458]
[1773170209753,0.0003034,70198.0,70172.0,0.04570458]
[1773170209952,0.03,70197.0,70172.0,0.04570458]
[1773170210134,0.03,70197.0,70174.0,0.04570458]
[1773170210774,0.03011238,70197.0,70174.0,0.04570458]
[1773170211411,0.03011238,70197.0,70176.0,0.04570458]
[1773170212495,0.03,70195.0,70177.0,0.07124841]
[1773170212730,0.03,70195.0,70178.0,0.04718458]
[1773170214740,0.03,70193.0,70179.0,0.07124638]
[1773170214938,0.03,70193.0,70180.0,0.04570458]
[1773170215451,0.00011238,70197.0,70180.0,0.04570458]
[1773170215837,0.03011238,70197.0,70180.0,0.04570458]
[1773170216239,0.10134079,70197.0,70180.0,0.04570458]
[1773170216436,0.10134079,70197.0,70179.0,0.07124638]
[1773170216802,0.10134079,70197.0,70181.0,0.07124435]
[1773170218656,0.10134079,70197.0,70182.0,0.00148]
[1773170219168,0.10134079,70197.0,70183.0,0.07124232]
[1773170219386,0.10134079,70197.0,70182.0,0.07272232]
[1773170219780,0.10134079,70197.0,70182.0,0.07272298]
[1773170220010,0.10134079,70197.0,70182.0,0.07124298]
[1773170220390,0.03,70196.0,70183.0,0.04570458]
[1773170220754,0.03,70196.0,70184.0,0.00148]
[1773170221135,0.07134054,70197.0,70185.0,0.07124029]
[1773170221136,0.03,70194.0,70185.0,0.07124029]
[1773170221365,0.03,70194.0,70185.0,0.11694487]
[1773170221586,0.03,70194.0,70185.0,0.07124029]
[1773170221935,0.03,70194.0,70186.0,0.00148]
[1773170222350,0.0041325,70208.0,70186.0,0.04718458]
[1773170222562,0.07120235,70223.0,70191.0,0.04570458]
[1773170222901,0.07120494,70220.0,70191.0,0.04607901]
[1773170223189,0.07142989,70225.0,70203.0,0.04570458]
[1773170223330,0.03,70224.0,70205.0,0.04570458]
[1773170223531,0.03,70224.0,70202.0,0.07122304]
[1773170223833,0.03,70224.0,70203.0,0.00148]
[1773170224034,0.03,70224.0,70201.0,0.07122358]
[1773170224232,0.03,70219.0,70192.0,0.07123229]
[1773170224441,0.00144,70218.0,70192.0,0.07271229]
[1773170224645,0.00144,70218.0,70192.0,0.11841687]
[1773170225044,0.00144,70218.0,70192.0,0.07123229]
[1773170225244,0.00144,70218.0,70193.0,0.00148]
[1773170225245,0.03,70215.0,70193.0,0.00148]
[1773170225453,0.03,70215.0,70191.0,0.07213786]
[1773170225680,0.03,70209.0,70192.0,0.00148]
[1773170226034,0.00144,70208.0,70192.0,0.00148]
[1773170226594,0.00144,70208.0,70189.0,0.00148]
[1773170226796,0.00144,70208.0,70191.0,0.04570458]
[1773170226797,0.03037443,70208.0,70191.0,0.04570458]
[1773170227142,0.03037443,70208.0,70180.0,0.0071]
[1773170227143,0.03,70200.0,70180.0,0.0071]
[1773170227347,0.03,70200.0,70180.0,0.07834483]
[1773170227348,0.03,70198.0,70180.0,0.07834483]
[1773170227566,0.03,70198.0,70180.0,0.0071]
[1773170227748,0.07266608,70199.0,70175.0,0.00023]
[1773170227749,0.03,70189.0,70175.0,0.00023]
[1773170227951,0.00144,70188.0,70175.0,0.00023]
[1773170229276,0.03,70186.0,70175.0,0.00023]
[1773170229815,0.03,70186.0,70175.0,8.26e-05]
[1773170230156,0.03,70186.0,70175.0,0.07133287]
[1773170230614,0.03,70186.0,70177.0,0.0002]
[1773170230820,0.031,70186.0,70177.0,0.0002]
[1773170231118,0.03,70186.0,70177.0,0.0002]
[1773170231327,0.03,70186.0,70177.0,0.07144773]
[1773170231523,0.03,70185.0,70177.0,0.07144773]
[1773170232538,0.03,70184.0,70177.0,0.07144773]
[1773170233074,0.07123525,70190.0,70177.0,0.07144773]
[1773170233075,0.12472,70219.0,70178.0,0.04570458]
[1773170233267,0.07121796,70207.0,70180.0,0.16262925]
[1773170233451,0.03,70206.0,70183.0,0.04570458]
[1773170233647,0.00148,70205.0,70184.0,0.00148]
[1773170233873,0.00148,70205.0,70185.0,0.04570458]
[1773170235578,0.03,70203.0,70186.0,0.07123927]
[1773170235874,0.03,70203.0,70187.0,0.00148]
[1773170237785,0.03,70201.0,70187.0,0.00148]
[1773170238447,0.03,70201.0,70187.0,0.0432329]
[1773170238625,0.03,70201.0,70187.0,0.0434329]
[1773170238955,0.03148,70201.0,70187.0,0.0434329]
[1773170240118,0.06918304,70202.0,70189.0,0.0417529]
[1773170240318,0.00148,70202.0,70189.0,0.0417529]
[1773170240687,0.07121649,70209.0,70189.0,0.0417529]
[1773170240688,0.07683758,70208.0,70189.0,0.0417529]
[1773170241496,0.03,70207.0,70189.0,0.0417529]
[1773170242057,0.10121887,70207.0,70191.0,0.0712342]
[1773170242250,0.10121887,70207.0,70192.0,0.0417529]
[1773170243874,0.10121887,70207.0,70193.0,0.00148]
[1773170244263,0.10121887,70207.0,70194.0,0.07123115]
[1773170244462,0.10121887,70207.0,70194.0,0.07271115]
[1773170244928,0.10121887,70207.0,70193.0,0.07123115]
[1773170245156,0.10121887,70207.0,70193.0,0.07271115]
[1773170245585,0.10121887,70207.0,70193.0,0.07123115]
[1773170245784,0.10121887,70207.0,70194.0,0.0417529]
[1773170246240,0.10121887,70207.0,70196.0,0.0417529]
[1773170246444,0.07120582,70219.0,70196.0,0.0417529]
[1773170246445,0.03,70215.0,70196.0,0.0417529]
[1773170247330,0.07120106,70224.0,70196.0,0.0417529]
[1773170247542,0.03,70222.0,70196.0,0.0417529]
[1773170248409,0.03,70220.0,70198.0,0.0417529]
[1773170248624,0.03,70220.0,70200.0,0.0417529]
[1773170248797,0.03,70220.0,70202.0,0.0417529]
[1773170249650,0.03037443,70220.0,70202.0,0.0417529]
[1773170249850,0.07120109,70224.0,70202.0,0.0417529]
[1773170250120,0.00011226,70224.0,70202.0,0.0417529]
[1773170250333,0.07119442,70231.0,70202.0,0.0417529]
[1773170250334,0.12709131,70244.0,70210.0,0.16262925]
[1773170250537,0.07118364,70241.0,70220.0,0.0417529]
[1773170250739,0.07118364,70241.0,70222.0,0.0417529]
[1773170251007,0.07118292,70242.0,70224.0,0.0417529]
[1773170251211,0.03,70240.0,70226.0,0.0417529]
[1773170251412,0.03,70240.0,70228.0,0.0417529]
[1773170251627,0.03,70240.0,70229.0,0.00148]
[1773170251823,0.00148,70239.0,70211.0,0.0417529]
[1773170252029,0.00148,70239.0,70213.0,0.0417529]
[1773170252436,0.03,70237.0,70215.0,0.0417529]
[1773170252639,0.07118349,70241.0,70215.0,0.0417529]
[1773170252640,0.07152396,70247.0,70215.0,0.0317529]
[1773170252792,0.00148,70246.0,70217.0,0.0367529]
[1773170252993,0.00148,70246.0,70218.0,0.00148]
[1773170253199,0.16220591,70240.0,70217.0,0.0367529]
[1773170253447,0.03148,70246.0,70218.0,0.00148]
[1773170253674,0.03148,70246.0,70218.0,0.0382329]
[1773170254781,0.03,70244.0,70219.0,0.07120579]
[1773170255000,0.03,70244.0,70220.0,0.0367529]
[1773170255229,0.07117944,70245.0,70218.0,0.0726868]
[1773170255230,0.03,70239.0,70218.0,0.0726868]
[1773170255488,0.0711781,70247.0,70219.0,0.0367529]
[1773170255687,0.0711781,70247.0,70215.0,0.07120681]
[1773170255688,0.00022001,70241.0,70211.0,0.07121391]
[1773170255917,0.16220591,70240.0,70210.0,0.00037443]
[1773170256136,0.03,70227.0,70210.0,0.00037443]
[1773170256349,0.21116663,70259.0,70203.0,0.14878371]
[1773170256553,0.16220591,70240.0,70225.0,0.00023]
[1773170256778,0.07118653,70238.0,70209.0,0.07121594]
[1773170256979,0.07118653,70238.0,70208.0,0.00562]
[1773170257100,0.07118653,70238.0,70208.0,0.0768364]
[1773170257318,0.03148,70237.0,70208.0,0.0768364]
[1773170258290,0.03,70237.0,70209.0,0.0367529]
[1773170258521,0.00148,70236.0,70209.0,0.0367529]
[1773170258887,0.03,70234.0,70211.0,0.0367529]
[1773170260789,0.03,70232.0,70209.0,0.07121594]
[1773170260992,0.03,70227.0,70208.0,0.00562]
[1773170261179,0.00148,70226.0,70208.0,0.00562]
[1773170261379,0.00148,70226.0,70202.0,0.07170299]
[1773170261590,0.00148,70226.0,70202.0,0.10845589]
[1773170261910,0.00148,70225.0,70202.0,0.10845578]
[1773170262082,0.00148,70225.0,70202.0,0.0372329]
[1773170262297,0.00148,70225.0,70202.0,0.07170287]
[1773170262488,0.03,70227.0,70203.0,0.0367529]
[1773170262489,0.00148,70224.0,70203.0,0.0367529]
[1773170262899,0.03,70222.0,70203.0,0.0367529]
[1773170263742,0.00148,70221.0,70204.0,0.0367529]
[1773170264552,0.03,70222.0,70204.0,0.0367529]
[1773170264751,0.00148,70220.0,70204.0,0.0367529]
[1773170264952,0.03,70218.0,70204.0,0.10797387]
[1773170266225,0.03,70218.0,70205.0,0.0367529]
[1773170266924,0.03,70216.0,70205.0,0.0367529]
[1773170267310,0.03,70216.0,70205.0,0.07121993]
[1773170267501,0.1301,70236.0,70205.0,0.07121993]
[1773170267502,0.1301,70236.0,70211.0,0.334429]
[1773170267652,0.00562,70236.0,70221.0,0.0367529]
[1773170267860,0.00148,70235.0,70221.0,0.0367529]
[1773170268053,0.00148,70234.0,70221.0,0.0367529]
[1773170268252,0.03,70243.0,70221.0,0.0367529]
[1773170268623,0.00148,70242.0,70221.0,0.03712727]
[1773170268825,0.00148,70241.0,70222.0,0.07120275]
[1773170269048,0.00023,70250.0,70223.0,0.0381929]
[1773170269049,0.00148,70240.0,70223.0,0.0381929]
[1773170269253,0.00148,70239.0,70223.0,0.0367529]
[1773170269467,0.00148,70238.0,70223.0,0.0367529]
[1773170269852,0.00148,70237.0,70223.0,0.0367529]
[1773170270029,0.07140444,70250.0,70223.0,0.0367529]
[1773170270030,0.00148,70236.0,70223.0,0.0367529]
[1773170270234,0.03,70249.0,70223.0,0.0367529]
[1773170270235,0.00148,70235.0,70223.0,0.0367529]